[Event "American Continental-ch 2018"]
[Site "Montevideo"]
[Date "2018.06.03"]
[Round "3"]
[White "Ruiz Castillo, Joshua Daniel"]
[Black "Guerrero, Alvaro"]
[Result "1-0"]
[ECO "B12"]
[WhiteElo "2378"]
[BlackElo "2116"]
[Annotator "NA"]
[PlyCount "43"]
[EventDate "2018.??.??"]
[EventType "swiss"]
[EventCountry "URU"]
[SourceTitle "playchess.com"]
[Source "ChessBase"]
[SourceQuality "1"]
[TimeControl "40/5400+30:1800+30"]

1. e4 {[%emt 0:02:33]} c6 {[%emt 0:00:11]} 2. d4 {[%emt 0:00:05]} d5 {[%emt 0:00:03]} 3. e5 {[%emt 0:00:05]} Bf5 {[%emt 0:00:54]} 4. h4 {[%emt 0:00:05]} h5 {[%emt 0:00:38]} 5. c4 {[%emt 0:00:03]} e6 {[%emt 0:00:25]} 6. Nc3 {[%emt 0:00:06]} Ne7 {[%emt 0:04:28]} 7. Nge2 {[%emt 0:00:04]} dxc4 {[%emt 0:14:16]} 8. Ng3 {[%emt 0:00:10]} Nd7 {[%emt 0:01:54]} 9. Bxc4 {[%emt 0:06:33]} Bg6 {[%emt 0:08:17]} 10. O-O {[%emt 0:31:48]} Nf5 {[%emt 0:02:19]} 11. Bg5 {[%emt 0:03:49]} Be7 {[%emt 0:04:37]} 12. Nce4 {[%emt 0:01:03]} Nxh4 {[%emt 0:13:37]} 13. Nd6+ {[%emt 0:00:45]} Kf8 {[%emt 0:00:05]} 14. Nxb7 {[%emt 0:00:32]} Qe8 {[%emt 0:03:33]} 15. Bxe7+ {[%emt 0:01:11]} Qxe7 {[%emt 0:00:08]} 16. Nd6 {[%emt 0:00:06]} Nb6 {[%emt 0:09:18]} 17. Ba6 {[%emt 0:04:07]} Rd8 {[%emt 0:00:54]} 18. Rc1 {[%emt 0:00:22]} Qg5 {[%emt 0:01:38]} 19. Rxc6 {[%emt 0:01:29]} Nd5 {[%emt 0:04:39]} 20. Qc1 {[%emt 0:00:32]} Nf4 {[%emt 0:02:37]} 21. Rc8 {[%emt 0:00:05]} Nhxg2 {[%emt 0:02:59]} 22. Qc7 {[%emt 0:02:28]} 1-0

[Event "American Continental-ch 2018"]
[Site "Montevideo"]
[Date "2018.06.03"]
[Round "3"]
[White "Foisor, Sabina-Francesca"]
[Black "Tregarthen, Emiliano"]
[Result "1-0"]
[ECO "E11"]
[WhiteElo "2301"]
[BlackElo "2083"]
[Annotator "NA"]
[PlyCount "95"]
[EventDate "2018.??.??"]
[EventType "swiss"]
[EventCountry "URU"]
[SourceTitle "playchess.com"]
[Source "ChessBase"]
[SourceQuality "1"]
[TimeControl "40/5400+30:1800+30"]

1. d4 {[%emt 0:02:46]} Nf6 {[%emt 0:00:06]} 2. c4 {[%emt 0:00:12]} e6 {[%emt 0:00:08]} 3. Nf3 {[%emt 0:00:05]} Bb4+ {[%emt 0:00:33]} 4. Bd2 {[%emt 0:00:21]} Bxd2+ {[%emt 0:01:55]} 5. Qxd2 {[%emt 0:00:59]} d6 {[%emt 0:00:38]} 6. Nc3 {[%emt 0:05:32]} O-O {[%emt 0:02:05]} 7. g3 {[%emt 0:01:29]} Nbd7 {[%emt 0:01:02]} 8. Bg2 {[%emt 0:00:44]} Re8 {[%emt 0:05:02]} 9. O-O {[%emt 0:03:45]} c6 {[%emt 0:09:53]} 10. Rad1 {[%emt 0:08:53]} Qe7 {[%emt 0:04:47]} 11. b4 {[%emt 0:03:45]} d5 {[%emt 0:05:16]} 12. c5 {[%emt 0:05:42]} e5 {[%emt 0:08:22]} 13. Nh4 {[%emt 0:05:31]} Nf8 {[%emt 0:03:07]} 14. dxe5 {[%emt 0:03:31]} Qxe5 {[%emt 0:00:03]} 15. Nf3 {[%emt 0:00:07]} Qh5 {[%emt 0:03:12]} 16. Rfe1 {[%emt 0:04:53]} Bh3 {[%emt 0:02:47]} 17. Bh1 {[%emt 0:00:44]} Ng6 {[%emt 0:07:54]} 18. Qg5 {[%emt 0:03:21]} Qxg5 {[%emt 0:01:14]} 19. Nxg5 {[%emt 0:00:01]} Bf5 {[%emt 0:03:00]} 20. e4 {[%emt 0:04:10]} dxe4 {[%emt 0:01:44]} 21. Ngxe4 {[%emt 0:00:21]} Nxe4 {[%emt 0:00:41]} 22. Bxe4 {[%emt 0:00:14]} Bxe4 {[%emt 0:00:29]} 23. Nxe4 {[%emt 0:06:35]} a5 {[%emt 0:10:27]} 24. a3 {[%emt 0:03:37]} Ne5 {[%emt 0:00:46]} 25. Kg2 {[%emt 0:03:41]} Nc4 {[%emt 0:01:09]} 26. bxa5 {[%emt 0:02:04]} h6 {[%emt 0:10:29]} 27. h4 {[%emt 0:06:59]} Nxa5 {[%emt 0:03:05]} 28. Nd6 {[%emt 0:00:50]} Rxe1 {[%emt 0:00:06]} 29. Rxe1 {[%emt 0:00:02]} Nb3 {[%emt 0:01:55]} 30. Nxb7 {[%emt 0:00:08]} Rxa3 {[%emt 0:01:50]} 31. Re3 {[%emt 0:02:56]} g6 {[%emt 0:02:46]} 32. h5 {[%emt 0:01:49]} Kg7 {[%emt 0:02:47]} 33. Nd6 {[%emt 0:00:43]} gxh5 {[%emt 0:01:32]} 34. Rf3 {[%emt 0:02:18]} Ra5 {[%emt 0:03:42]} 35. Rxb3 {[%emt 0:00:24]} Rxc5 {[%emt 0:00:07]} 36. Rb7 {[%emt 0:00:39]} h4 {[%emt 0:00:44]} 37. gxh4 {[%emt 0:03:04]} Rd5 {[%emt 0:00:34]} 38. Nxf7 {[%emt 0:01:54]} Kg6 {[%emt 0:00:57]} 39. Kg3 {[%emt 0:03:55]} Rd3+ {[%emt 0:01:15]} 40. f3 {[%emt 0:00:14]} Rd5 {[%emt 0:30:30]} 41. Rd7 {[%emt 0:30:48]} Rf5 {[%emt 0:01:03]} 42. Nd6 {[%emt 0:01:07]} Rd5 {[%emt 0:00:00]} 43. Nc4 Rxd7 {[%emt 0:00:00]} 44. Ne5+ {[%emt 0:00:00]} Kf5 {[%emt 0:00:00]} 45. Nxd7 {[%emt 0:00:00]} Ke6 {[%emt 0:00:00]} 46. Nb6 {[%emt 0:00:00]} Kf5 {[%emt 0:00:00]} 47. Nc4 {[%emt 0:00:00]} c5 {[%emt 0:00:00]} 48. f4 1-0

[Event "American Continental-ch 2018"]
[Site "Montevideo"]
[Date "2018.06.03"]
[Round "3"]
[White "Muniz, Rafael"]
[Black "Medrano, Mario"]
[Result "1-0"]
[ECO "B80"]
[WhiteElo "2290"]
[BlackElo "2073"]
[Annotator "NA"]
[PlyCount "97"]
[EventDate "2018.??.??"]
[EventType "swiss"]
[EventCountry "URU"]
[SourceTitle "playchess.com"]
[Source "ChessBase"]
[SourceQuality "1"]
[TimeControl "40/5400+30:1800+30"]

1. e4 e6 2. Nf3 {[%emt 0:00:00]} c5 {[%emt 0:03:33]} 3. d4 cxd4 {[%emt 0:00:12]} 4. Nxd4 {[%emt 0:00:01]} Nf6 {[%emt 0:00:11]} 5. Nc3 {[%emt 0:00:18]} d6 {[%emt 0:05:33]} 6. g3 {[%emt 0:00:55]} Be7 {[%emt 0:00:43]} 7. Bg2 {[%emt 0:00:17]} a6 {[%emt 0:01:01]} 8. O-O {[%emt 0:00:54]} Qc7 {[%emt 0:00:16]} 9. Re1 {[%emt 0:03:04]} O-O {[%emt 0:02:02]} 10. g4 {[%emt 0:05:03]} Nc6 {[%emt 0:05:29]} 11. Nxc6 {[%emt 0:02:38]} bxc6 {[%emt 0:00:20]} 12. g5 {[%emt 0:00:30]} Nd7 {[%emt 0:00:30]} 13. f4 {[%emt 0:02:58]} d5 {[%emt 0:00:07]} 14. Kh1 {[%emt 0:03:42]} Re8 {[%emt 0:06:21]} 15. f5 {[%emt 0:05:45]} Bb7 {[%emt 0:02:25]} 16. Rf1 {[%emt 0:04:13]} exf5 {[%emt 0:00:30]} 17. exd5 {[%emt 0:00:30]} Bd6 {[%emt 0:20:25]} 18. Rxf5 {[%emt 0:11:24]} Nb6 {[%emt 0:00:54]} 19. Ne4 cxd5 {[%emt 0:26:56]} 20. Nxd6 {[%emt 0:10:11]} Qxd6 {[%emt 0:00:07]} 21. Rf1 {[%emt 0:00:55]} Qd7 {[%emt 0:04:41]} 22. Qd4 {[%emt 0:02:44]} Qc6 {[%emt 0:06:46]} 23. b3 {[%emt 0:01:51]} Re2 {[%emt 0:01:05]} 24. Bb2 {[%emt 0:02:39]} Qg6 {[%emt 0:00:04]} 25. Rf2 {[%emt 0:03:04]} Rae8 {[%emt 0:02:01]} 26. Raf1 {[%emt 0:01:50]} Rxf2 {[%emt 0:01:02]} 27. Qxf2 {[%emt 0:00:57]} Re7 {[%emt 0:02:28]} 28. Bd4 {[%emt 0:08:18]} Nc8 {[%emt 0:00:20]} 29. c3 {[%emt 0:06:32]} Nd6 {[%emt 0:00:38]} 30. Qg3 {[%emt 0:03:45]} Re8 {[%emt 0:01:21]} 31. Bh3 {[%emt 0:03:20]} Qe4+ {[%emt 0:00:32]} 32. Kg1 {[%emt 0:01:19]} Nb5 {[%emt 0:00:12]} 33. Qf2 {[%emt 0:03:31]} Qg6 {[%emt 0:01:02]} 34. Qf5 {[%emt 0:04:24]} Nxd4 {[%emt 0:04:13]} 35. cxd4 {[%emt 0:00:12]} Re4 {[%emt 0:01:47]} 36. Rc1 {[%emt 0:03:33]} Qxf5 {[%emt 0:00:50]} 37. Bxf5 {[%emt 0:00:10]} Rxd4 {[%emt 0:00:02]} 38. Rc7 {[%emt 0:01:24]} Rb4 {[%emt 0:00:07]} 39. Bc8 {[%emt 0:01:23]} Ba8 {[%emt 0:00:49]} 40. Bxa6 {[%emt 0:02:27]} Rb8 {[%emt 0:30:06]} 41. Rc8+ {[%emt 0:31:48]} Rxc8 {[%emt 0:00:10]} 42. Bxc8 {[%emt 0:00:07]} Kf8 {[%emt 0:00:22]} 43. Kf2 {[%emt 0:00:18]} Ke7 {[%emt 0:02:19]} 44. Ke3 {[%emt 0:00:20]} Kd6 {[%emt 0:00:00]} 45. Kd4 {[%emt 0:00:00]} h6 {[%emt 0:00:00]} 46. gxh6 {[%emt 0:00:00]} gxh6 {[%emt 0:00:00]} 47. a4 {[%emt 0:00:00]} Kc7 {[%emt 0:00:00]} 48. Bg4 {[%emt 0:00:00]} Kb6 {[%emt 0:00:00]} 49. Bf3 1-0

[Event "American Continental-ch 2018"]
[Site "Montevideo"]
[Date "2018.06.03"]
[Round "3"]
[White "Markzon, Gregory"]
[Black "Pierrot, Facundo"]
[Result "0-1"]
[ECO "D10"]
[WhiteElo "2144"]
[BlackElo "2392"]
[Annotator "NA"]
[PlyCount "96"]
[EventDate "2018.??.??"]
[EventType "swiss"]
[EventCountry "URU"]
[SourceTitle "playchess.com"]
[Source "ChessBase"]
[SourceQuality "1"]
[TimeControl "40/5400+30:1800+30"]

1. d4 {[%emt 0:00:00]} d5 {[%emt 0:00:32]} 2. c4 {[%emt 0:00:00]} c6 {[%emt 0:00:19]} 3. Nc3 {[%emt 0:00:20]} Nf6 {[%emt 0:00:32]} 4. Bg5 {[%emt 0:00:23]} dxc4 {[%emt 0:02:13]} 5. e4 {[%emt 0:03:00]} b5 {[%emt 0:00:11]} 6. e5 {[%emt 0:02:00]} Nd5 {[%emt 0:00:06]} 7. Nf3 {[%emt 0:01:11]} g6 {[%emt 0:03:39]} 8. Be2 {[%emt 0:03:42]} Bg7 {[%emt 0:00:08]} 9. O-O {[%emt 0:00:56]} O-O {[%emt 0:00:36]} 10. Qd2 {[%emt 0:01:05]} Be6 {[%emt 0:11:46]} 11. Ne4 {[%emt 0:03:35]} Nd7 {[%emt 0:03:19]} 12. Bh6 {[%emt 0:09:55]} Bf5 {[%emt 0:04:33]} 13. Ng3 {[%emt 0:06:27]} e6 {[%emt 0:00:08]} 14. Bxg7 {[%emt 0:04:43]} Kxg7 {[%emt 0:00:09]} 15. Ng5 {[%emt 0:00:25]} Qe7 {[%emt 0:07:01]} 16. Nxf5+ {[%emt 0:08:33]} exf5 {[%emt 0:03:49]} 17. a4 {[%emt 0:02:56]} a6 {[%emt 0:00:49]} 18. Bf3 {[%emt 0:02:13]} h6 {[%emt 0:01:07]} 19. Nh3 {[%emt 0:00:50]} N7b6 {[%emt 0:08:41]} 20. a5 {[%emt 0:01:38]} c3 {[%emt 0:00:06]} 21. bxc3 {[%emt 0:00:56]} Nc4 {[%emt 0:00:07]} 22. Qc2 {[%emt 0:02:33]} Qh4 {[%emt 0:03:55]} 23. Rfe1 {[%emt 0:07:08]} Rfe8 {[%emt 0:00:39]} 24. Qc1 {[%emt 0:03:53]} Rad8 {[%emt 0:04:39]} 25. Bxd5 {[%emt 0:05:56]} cxd5 {[%emt 0:02:10]} 26. Nf4 {[%emt 0:00:48]} Qe7 {[%emt 0:04:37]} 27. Ra2 {[%emt 0:03:27]} b4 {[%emt 0:04:00]} 28. cxb4 {[%emt 0:03:01]} Qxb4 {[%emt 0:00:06]} 29. Rae2 {[%emt 0:02:40]} Qa3 {[%emt 0:05:44]} 30. Qxa3 {[%emt 0:04:45]} Nxa3 {[%emt 0:00:09]} 31. h4 {[%emt 0:04:48]} Nc4 {[%emt 0:00:32]} 32. e6 {[%emt 0:01:24]} Rd6 {[%emt 0:03:39]} 33. e7 {[%emt 0:03:08]} Rd7 {[%emt 0:02:24]} 34. Nd3 {[%emt 0:01:24]} Nxa5 {[%emt 0:02:35]} 35. Nc5 {[%emt 0:01:26]} Ra7 {[%emt 0:04:21]} 36. Ra2 {[%emt 0:00:26]} Nc4 {[%emt 0:03:34]} 37. Rxa6 {[%emt 0:02:04]} Raxe7 {[%emt 0:00:07]} 38. Rxe7 {[%emt 0:01:56]} Rxe7 {[%emt 0:00:07]} 39. g3 {[%emt 0:02:50]} g5 {[%emt 0:02:39]} 40. hxg5 {[%emt 0:00:53]} hxg5 {[%emt 0:30:07]} 41. Ra1 {[%emt 0:01:31]} Re2 {[%emt 0:00:00]} 42. Rd1 {[%emt 0:00:59]} Nd2 {[%emt 0:00:00]} 43. Nd3 {[%emt 0:07:02]} Ne4 {[%emt 0:00:00]} 44. Kg2 f6 {[%emt 0:00:00]} 45. Kg1 {[%emt 0:04:08]} Kg6 {[%emt 0:00:00]} 46. Kg2 Rc2 {[%emt 0:00:00]} 47. Kg1 {[%emt 0:01:04]} Nc3 {[%emt 0:00:00]} 48. Kg2 Nxd1 {[%emt 0:00:00]} 0-1

[Event "American Continental-ch 2018"]
[Site "Montevideo"]
[Date "2018.06.03"]
[Round "3"]
[White "Santos Filho, Tadeu Sousa"]
[Black "Lujan, Carolina"]
[Result "1/2-1/2"]
[ECO "B23"]
[WhiteElo "2096"]
[BlackElo "2341"]
[Annotator "NA"]
[PlyCount "65"]
[EventDate "2018.??.??"]
[EventType "swiss"]
[EventCountry "URU"]
[SourceTitle "playchess.com"]
[Source "ChessBase"]
[SourceQuality "1"]
[TimeControl "40/5400+30:1800+30"]

1. e4 {[%emt 0:03:02]} c5 {[%emt 0:00:21]} 2. Nc3 {[%emt 0:00:22]} a6 {[%emt 0:00:19]} 3. Nge2 {[%emt 0:08:28]} e6 {[%emt 0:00:59]} 4. g3 {[%emt 0:00:09]} b5 {[%emt 0:05:40]} 5. a3 {[%emt 0:04:16]} Bb7 {[%emt 0:01:23]} 6. Bg2 {[%emt 0:00:08]} Nc6 {[%emt 0:03:35]} 7. O-O {[%emt 0:00:11]} d6 {[%emt 0:27:20]} 8. d3 {[%emt 0:07:26]} Nf6 {[%emt 0:01:06]} 9. h3 {[%emt 0:05:45]} Be7 {[%emt 0:04:43]} 10. Bg5 {[%emt 0:02:41]} Nxe4 {[%emt 0:14:49]} 11. Bxe7 {[%emt 0:02:54]} Nxc3 {[%emt 0:01:43]} 12. Bxd8 {[%emt 0:00:25]} Nxd1 {[%emt 0:00:03]} 13. Bc7 {[%emt 0:00:42]} Nxb2 14. Bxd6 {[%emt 0:02:26]} Na4 {[%emt 0:02:25]} 15. Bxc6+ {[%emt 0:26:49]} Bxc6 {[%emt 0:00:18]} 16. d4 {[%emt 0:00:07]} c4 {[%emt 0:04:05]} 17. f3 {[%emt 0:06:00]} O-O-O {[%emt 0:02:28]} 18. Bf4 {[%emt 0:00:36]} f6 {[%emt 0:01:47]} 19. Bd2 {[%emt 0:04:05]} Rd7 {[%emt 0:07:40]} 20. Ba5 {[%emt 0:01:50]} e5 {[%emt 0:02:53]} 21. dxe5 {[%emt 0:04:39]} Re8 {[%emt 0:00:49]} 22. Kf2 {[%emt 0:01:35]} Rxe5 {[%emt 0:00:35]} 23. Rad1 {[%emt 0:01:44]} c3 {[%emt 0:07:13]} 24. Rxd7 {[%emt 0:02:02]} Bxd7 {[%emt 0:00:02]} 25. Rd1 {[%emt 0:03:21]} Bxh3 {[%emt 0:02:43]} 26. g4 {[%emt 0:00:25]} h5 {[%emt 0:00:08]} 27. Rd8+ {[%emt 0:00:16]} Kb7 {[%emt 0:00:03]} 28. Rd7+ {[%emt 0:01:04]} Kc6 {[%emt 0:02:48]} 29. Rxg7 {[%emt 0:00:18]} hxg4 {[%emt 0:01:02]} 30. fxg4 {[%emt 0:01:42]} Re4 {[%emt 0:02:08]} 31. Kf3 {[%emt 0:03:04]} Bg2+ {[%emt 0:00:03]} 32. Kf2 {[%emt 0:00:15]} Bh3 {[%emt 0:00:03]} 33. Kf3 {[%emt 0:01:30]} 1/2-1/2

[Event "American Continental-ch 2018"]
[Site "Montevideo"]
[Date "2018.06.03"]
[Round "3"]
[White "Cervantes Landeiro, Thalia"]
[Black "Aranha Filho, Alvaro Z"]
[Result "1-0"]
[ECO "E21"]
[WhiteElo "2087"]
[BlackElo "2304"]
[Annotator "NA"]
[PlyCount "87"]
[EventDate "2018.??.??"]
[EventType "swiss"]
[EventCountry "URU"]
[SourceTitle "playchess.com"]
[Source "ChessBase"]
[SourceQuality "1"]
[TimeControl "40/5400+30:1800+30"]

1. d4 {[%emt 0:00:00]} Nf6 {[%emt 0:01:46]} 2. c4 {[%emt 0:00:00]} e6 {[%emt 0:00:10]} 3. Nc3 {[%emt 0:00:00]} Bb4 {[%emt 0:00:05]} 4. Nf3 {[%emt 0:00:00]} d5 {[%emt 0:00:15]} 5. cxd5 {[%emt 0:00:15]} exd5 {[%emt 0:00:07]} 6. Bg5 {[%emt 0:00:24]} h6 {[%emt 0:00:21]} 7. Bh4 {[%emt 0:01:24]} Bf5 {[%emt 0:00:53]} 8. Qb3 {[%emt 0:02:14]} Nc6 {[%emt 0:08:20]} 9. e3 {[%emt 0:02:43]} O-O {[%emt 0:23:33]} 10. Bb5 {[%emt 0:02:14]} g5 {[%emt 0:23:38]} 11. Bg3 {[%emt 0:11:49]} Bd6 {[%emt 0:08:45]} 12. O-O {[%emt 0:11:43]} Bxg3 {[%emt 0:03:45]} 13. hxg3 {[%emt 0:00:52]} Ne7 {[%emt 0:00:33]} 14. Ne5 {[%emt 0:03:51]} c6 {[%emt 0:01:03]} 15. Be2 {[%emt 0:01:38]} Rb8 {[%emt 0:15:01]} 16. f3 {[%emt 0:07:36]} Kg7 {[%emt 0:00:39]} 17. g4 {[%emt 0:02:02]} Bh7 {[%emt 0:00:30]} 18. Nd1 {[%emt 0:10:02]} Ne8 {[%emt 0:02:20]} 19. Nf2 {[%emt 0:01:25]} Nd6 {[%emt 0:00:19]} 20. Nh1 {[%emt 0:05:39]} f6 {[%emt 0:04:02]} 21. Nd3 {[%emt 0:00:18]} Bg6 {[%emt 0:00:01]} 22. Nc5 {[%emt 0:00:47]} Bf7 {[%emt 0:00:24]} 23. Ng3 {[%emt 0:00:35]} b6 {[%emt 0:00:59]} 24. Nh5+ {[%emt 0:01:14]} Kh8 {[%emt 0:00:01]} 25. Na6 {[%emt 0:00:43]} Bxh5 {[%emt 0:04:46]} 26. Nxb8 {[%emt 0:01:25]} Bf7 {[%emt 0:00:01]} 27. Na6 {[%emt 0:00:17]} Nc4 {[%emt 0:00:32]} 28. Qc3 {[%emt 0:01:27]} Ng6 {[%emt 0:00:49]} 29. b3 {[%emt 0:00:44]} Nd6 {[%emt 0:00:48]} 30. Nb4 {[%emt 0:01:47]} a5 {[%emt 0:00:24]} 31. Nxc6 {[%emt 0:01:26]} Qd7 {[%emt 0:00:14]} 32. a4 {[%emt 0:04:26]} Re8 {[%emt 0:00:36]} 33. Bb5 {[%emt 0:01:14]} Nh4 {[%emt 0:00:38]} 34. Ne5 {[%emt 0:02:41]} Nxb5 {[%emt 0:00:07]} 35. Nxf7+ {[%emt 0:00:09]} Qxf7 {[%emt 0:00:06]} 36. axb5 {[%emt 0:00:02]} Qe6 {[%emt 0:00:06]} 37. Rac1 {[%emt 0:02:44]} Qxe3+ {[%emt 0:01:01]} 38. Qxe3 {[%emt 0:00:09]} Rxe3 {[%emt 0:00:05]} 39. Rc8+ {[%emt 0:00:56]} Kg7 {[%emt 0:00:12]} 40. Rfc1 {[%emt 0:00:26]} f5 {[%emt 0:30:41]} 41. R1c7+ {[%emt 0:31:58]} Kf6 {[%emt 0:01:04]} 42. Rf8+ {[%emt 0:00:22]} Kg6 {[%emt 0:00:13]} 43. gxf5+ {[%emt 0:00:11]} Nxf5 {[%emt 0:00:54]} 44. Rc6+ {[%emt 0:00:04]} 1-0

[Event "American Continental-ch 2018"]
[Site "Montevideo"]
[Date "2018.06.03"]
[Round "3"]
[White "Sauvageot Ledezma, Diego"]
[Black "Grabinsky, Aaron"]
[Result "0-1"]
[ECO "E21"]
[WhiteElo "2084"]
[BlackElo "2296"]
[Annotator "NA"]
[PlyCount "88"]
[EventDate "2018.??.??"]
[EventType "swiss"]
[EventCountry "URU"]
[SourceTitle "playchess.com"]
[Source "ChessBase"]
[SourceQuality "1"]
[TimeControl "40/5400+30:1800+30"]

1. d4 {[%emt 0:00:00]} Nf6 {[%emt 0:00:11]} 2. c4 {[%emt 0:00:00]} e6 {[%emt 0:00:08]} 3. Nc3 {[%emt 0:00:08]} Bb4 {[%emt 0:00:07]} 4. Nf3 {[%emt 0:00:55]} c5 {[%emt 0:00:25]} 5. g3 {[%emt 0:01:11]} Nc6 {[%emt 0:01:13]} 6. Bg2 {[%emt 0:07:18]} d6 {[%emt 0:00:34]} 7. O-O {[%emt 0:00:30]} Bxc3 {[%emt 0:00:04]} 8. bxc3 {[%emt 0:00:06]} O-O {[%emt 0:02:16]} 9. Bg5 {[%emt 0:12:05]} h6 {[%emt 0:06:16]} 10. Bxf6 {[%emt 0:00:48]} Qxf6 {[%emt 0:00:02]} 11. Rb1 {[%emt 0:02:01]} Rb8 {[%emt 0:04:21]} 12. Nd2 {[%emt 0:02:36]} Na5 {[%emt 0:01:47]} 13. Ne4 {[%emt 0:12:45]} Qe7 {[%emt 0:00:09]} 14. dxc5 {[%emt 0:08:17]} dxc5 {[%emt 0:00:12]} 15. Qd6 {[%emt 0:00:14]} Qxd6 {[%emt 0:00:20]} 16. Nxd6 {[%emt 0:00:05]} b6 {[%emt 0:00:52]} 17. Rfd1 {[%emt 0:06:27]} Ba6 {[%emt 0:03:43]} 18. Nb5 {[%emt 0:00:41]} Bxb5 {[%emt 0:03:15]} 19. cxb5 {[%emt 0:00:22]} Rfd8 {[%emt 0:00:06]} 20. Kf1 {[%emt 0:11:57]} Nc4 {[%emt 0:02:21]} 21. Ke1 {[%emt 0:01:01]} Na3 {[%emt 0:00:22]} 22. Rb2 {[%emt 0:00:56]} Rxd1+ {[%emt 0:00:08]} 23. Kxd1 {[%emt 0:00:06]} Rd8+ {[%emt 0:00:04]} 24. Rd2 {[%emt 0:07:00]} Rxd2+ {[%emt 0:00:52]} 25. Kxd2 {[%emt 0:00:05]} Nxb5 {[%emt 0:00:07]} 26. Kd3 {[%emt 0:00:09]} Nd6 {[%emt 0:01:07]} 27. Bc6 {[%emt 0:01:54]} e5 {[%emt 0:07:34]} 28. Bd5 {[%emt 0:04:03]} Kf8 {[%emt 0:00:56]} 29. f4 {[%emt 0:02:14]} exf4 {[%emt 0:02:31]} 30. gxf4 {[%emt 0:00:17]} g5 {[%emt 0:00:10]} 31. e3 {[%emt 0:05:22]} Ke7 {[%emt 0:00:50]} 32. Bf3 {[%emt 0:00:51]} Ke6 {[%emt 0:00:46]} 33. Bg4+ {[%emt 0:00:47]} f5 {[%emt 0:00:10]} 34. Bf3 {[%emt 0:00:04]} g4 {[%emt 0:00:09]} 35. Bc6 {[%emt 0:00:39]} h5 {[%emt 0:00:21]} 36. c4 {[%emt 0:01:02]} h4 {[%emt 0:00:35]} 37. Bd5+ {[%emt 0:01:15]} Kf6 {[%emt 0:00:13]} 38. Bg2 {[%emt 0:00:55]} h3 {[%emt 0:00:22]} 39. Bh1 {[%emt 0:01:14]} Ne4 {[%emt 0:00:16]} 40. Kc2 {[%emt 0:04:40]} g3 {[%emt 0:30:13]} 41. hxg3 {[%emt 0:30:13]} Nxg3 {[%emt 0:00:14]} 42. Bf3 {[%emt 0:00:00]} h2 {[%emt 0:00:00]} 43. Kd3 {[%emt 0:00:00]} h1=Q {[%emt 0:00:00]} 44. Bxh1 {[%emt 0:00:00]} Nxh1 {[%emt 0:00:00]} 0-1

[Event "American Continental-ch 2018"]
[Site "Montevideo"]
[Date "2018.06.03"]
[Round "4"]
[White "Santarius, Erik"]
[Black "Curi, Gabriel"]
[Result "1-0"]
[ECO "D10"]
[WhiteElo "2387"]
[BlackElo "2141"]
[Annotator "RC"]
[PlyCount "73"]
[EventDate "2018.??.??"]
[EventType "swiss"]
[EventCountry "URU"]
[SourceTitle "playchess.com"]
[Source "ChessBase"]
[SourceQuality "1"]
[TimeControl "40/5400+30:1800+30"]

1. d4 {[%emt 0:00:00]} d5 {[%emt 0:00:05]} 2. c4 {[%emt 0:00:00]} c6 {[%emt 0:00:03]} 3. cxd5 {[%emt 0:00:09]} cxd5 {[%emt 0:00:06]} 4. Bf4 {[%emt 0:00:15]} Nc6 {[%emt 0:00:32]} 5. e3 {[%emt 0:00:52]} Nf6 {[%emt 0:01:50]} 6. Nc3 {[%emt 0:00:13]} Bf5 {[%emt 0:04:25]} 7. Qb3 {[%emt 0:00:47]} Na5 {[%emt 0:01:39]} 8. Qa4+ {[%emt 0:00:13]} Bd7 {[%emt 0:00:05]} 9. Qc2 {[%emt 0:00:21]} Rc8 {[%emt 0:01:25]} 10. Bd3 {[%emt 0:02:08]} e6 {[%emt 0:02:31]} 11. Nf3 {[%emt 0:02:21]} Bb4 {[%emt 0:16:50]} 12. O-O {[%emt 0:01:01]} O-O {[%emt 0:05:16]} 13. a3 {[%emt 0:02:36]} Bxc3 {[%emt 0:02:47]} 14. bxc3 {[%emt 0:00:09]} Ne4 {[%emt 0:00:19]} 15. Bxe4 {[%emt 0:13:37]} dxe4 {[%emt 0:00:06]} 16. Qxe4 {[%emt 0:00:55]} Bc6 {[%emt 0:13:45]} 17. Qd3 {[%emt 0:02:25]} Qd5 {[%emt 0:02:14]} 18. Rfe1 {[%emt 0:02:59]} f5 {[%emt 0:02:52]} 19. h3 {[%emt 0:07:58]} Rf6 {[%emt 0:06:42]} 20. Kh2 {[%emt 0:01:51]} Nc4 {[%emt 0:07:34]} 21. Rg1 {[%emt 0:01:45]} Rg6 {[%emt 0:02:29]} 22. Qe2 {[%emt 0:03:54]} h6 {[%emt 0:03:43]} 23. Bg3 {[%emt 0:03:54]} Kh7 {[%emt 0:02:35]} 24. a4 {[%emt 0:01:49]} a5 {[%emt 0:01:00]} 25. Ne1 {[%emt 0:02:07]} Rf6 {[%emt 0:02:38]} 26. Nd3 {[%emt 0:00:51]} g5 {[%emt 0:00:42]} 27. f3 {[%emt 0:01:06]} b6 {[%emt 0:07:03]} 28. Rgf1 {[%emt 0:03:19]} Qd7 {[%emt 0:00:59]} 29. Ne5 {[%emt 0:06:52]} Nxe5 {[%emt 0:00:16]} 30. Bxe5 {[%emt 0:00:09]} Rf7 {[%emt 0:00:24]} 31. Rfb1 {[%emt 0:01:03]} Bxa4 {[%emt 0:06:21]} 32. Rxb6 {[%emt 0:00:32]} Ra8 {[%emt 0:01:15]} 33. Qc4 {[%emt 0:01:51]} Bc2 {[%emt 0:01:12]} 34. Rd6 {[%emt 0:01:28]} Qe8 {[%emt 0:02:26]} 35. Rxe6 {[%emt 0:00:28]} Re7 {[%emt 0:00:02]} 36. Rxe7+ {[%emt 0:00:38]} Qxe7 {[%emt 0:00:01]} 37. Rc1 {[%emt 0:00:24]} 1-0